{"text_format":"3","workbook":"xlsx","n_sheets":1,"sheets":["PRICING SCHEDULE"],"not_rendered":{"images":1,"defined_names":2},"read":"whole","date_system":"1900"}

{"sheet":"PRICING SCHEDULE","index":0,"n_rows":28,"n_cols":20,"rows_kept":28,"merged":[[24,1,27,1],[24,3,24,4],[26,3,26,4],[27,3,27,4]]}
[null,"SUPPLY CHAIN MANAGEMENT"]
[null,"Pricing schedule"]
["RFB No","RFB 3241-2026"]
["RFB Title","Appointment of a service provider to provide Gardening and Landscaping services to SITA Gauteng Offices (Erasmuskloof, Centurion, Beta, Numerus and Medical Battalion) for a period of five (5) years"]
["Bidder Name "]
[]
["1. INSTRUCTION FOR COMPLETING THE PRICING SCHEDULE"]
["(a)  Bidder must complete/enter YELLOW cells only"]
["(b)  Unit and Line prices must be VAT EXCLUSIVE and in South African Rand (ZAR) currency."]
["(c) The price must include all cost to deliver the goods or render the service, including all applicable taxes, duty fees, logistics/delivery, storage, labour, overtime and subsistance and travel etc."]
[]
["Item No","Goods/Service description","Unit of measure","Qty ","Unit Price \n(Excl VAT)","Line Price Y1","Qty ","Unit Price \n(Excl VAT)","Line Price Y2","Qty ","Unit Price \n(Excl VAT)","Line Price Y3","Qty ","Unit Price \n(Excl VAT)","Line Price Y4","Qty ","Unit Price \n(Excl VAT)","Line Price Y5","Line Price Total\n(Excl VAT)","Price clarification comment"]
[null,"Once off landscaping Project"]
[1,"Once off Supply & installation of Irrigation systems\n","each",1,null,{"$f":"D14*E14","v":0},{"$nulls":12},{"$f":"SUM(F14)","v":0}]
[2,"Once-off Re-design and Upgrade project","each",1,null,{"$f":"D15*E15","v":0},{"$nulls":12},{"$f":"SUM(F15)","v":0}]
[null,"Gardening and Landscaping contract (including maintenance & support of all newly installed and already existing irrigation systems) "]
[3.1,"Landscaping and Garden Maintenance - Labour only","monthly",12,null,{"$f":"D17*E17","v":0},12,null,{"$f":"G17*H17","v":0},12,null,{"$f":"J17*K17","v":0},12,null,{"$f":"M17*N17","v":0},12,null,{"$f":"P17*Q17","v":0},{"$f":"L17+I17+F17+O17+R17","v":0}]
[3.2,"Landscaping and Garden Maintenance - Operating cost","monthly",12,null,0,12,null,0,12,null,0,12,null,{"$f":"M18*N18","v":0},12,null,{"$f":"P18*Q18","v":0},{"$f":"L18+I18+F18+O18+R18","v":0}]
[null,"Note: Prices to include all equipment. Labour, materials and overheads"]
[null,"TOTAL BID PRICE  (EXCL VAT)",{"$nulls":3},{"$f":"SUM(F14:F19)","v":0},null,null,{"$f":"SUM(I14:I19)","v":0},null,null,{"$f":"SUM(L14:L19)","v":0},null,null,{"$f":"SUM(O14:O19)","v":0},null,null,{"$f":"SUM(R14:R19)","v":0},{"$f":"SUM(S14:S19)","v":0}]
[null,"VAT (@15%)",{"$nulls":3},{"$f":"F20*0.15","v":0},null,null,{"$f":"I20*0.15","v":0},null,null,{"$f":"L20*0.15","v":0},null,null,{"$f":"O20*0.15","v":0},null,null,{"$f":"R20*0.15","v":0},{"$f":"S20*0.15","v":0}]
[null,"TOTAL  BID PRICE (INCL VAT)",{"$nulls":3},{"$f":"F20+F21","v":0},null,null,{"$f":"I20+I21","v":0},null,null,{"$f":"L20+L21","v":0},null,null,{"$f":"O20+O21","v":0},null,null,{"$f":"R20+R21","v":0},{"$f":"S20+S21","v":0}]
[]
[]
[null,"I, the bidder, confirm that the price(s) and rate(s) quoted cover all the goods and/or works specified in the bidding documents; that the price(s) or rate(s) cover all my obligations and I accept that any mistakes regarding price(s), rate(s) or calculations will be at my own risk.\n[Note: First convert to PDF, then add signature]"]
[null,null,"Name","Capacity"]
[]
[null,null,"Signature (above)","Date"]